[Event "Late-Titled-Tuesday-Blitz-February-06-2024"]
[Site "Chess.com"]
[Date "2024.02.06"]
[Round "1"]
[White "Zorbos"]
[Black "LiemLe"]
[Result "0-1"]
[WhiteElo "2519"]
[BlackElo "3028"]
[TimeControl "180+1"]
[EndTime "14:04:34 PST"]
[Termination "LiemLe won by resignation"]

1. e4 {[%clk 0:02:53.4]} 1... c5 {[%clk 0:02:59.5]} 2. Nf3 {[%clk 0:02:53.5]}
2... Nc6 {[%clk 0:02:58.8]} 3. d4 {[%clk 0:02:53.7]} 3... cxd4 {[%clk
0:02:59.7]} 4. Nxd4 {[%clk 0:02:54.6]} 4... e5 {[%clk 0:02:59.5]} 5. Nb5 {[%clk
0:02:55]} 5... d6 {[%clk 0:02:59.3]} 6. N1c3 {[%clk 0:02:55.3]} 6... a6 {[%clk
0:02:59.5]} 7. Na3 {[%clk 0:02:56]} 7... Be6 {[%clk 0:02:59.8]} 8. Nd5 {[%clk
0:02:56.3]} 8... Nf6 {[%clk 0:02:32.1]} 9. Bg5 {[%clk 0:02:56.3]} 9... Bxd5
{[%clk 0:02:31.9]} 10. exd5 {[%clk 0:02:56]} 10... Qa5+ {[%clk 0:02:29.4]} 11.
Bd2 {[%clk 0:02:55.3]} 11... Qxd5 {[%clk 0:02:28.7]} 12. Nc4 {[%clk 0:02:55.8]}
12... Rd8 {[%clk 0:02:24.9]} 13. Be3 {[%clk 0:02:53.8]} 13... Qxd1+ {[%clk
0:02:19.1]} 14. Rxd1 {[%clk 0:02:54.7]} 14... d5 {[%clk 0:02:19.8]} 15. Nb6
{[%clk 0:02:55.3]} 15... d4 {[%clk 0:02:17]} 16. Bg5 {[%clk 0:02:55.6]} 16...
Bb4+ {[%clk 0:02:16.6]} 17. Ke2 {[%clk 0:02:56.1]} 17... Be7 {[%clk 0:02:10.6]}
18. Bxf6 {[%clk 0:02:55.8]} 18... Bxf6 {[%clk 0:02:11.5]} 19. g3 {[%clk
0:02:56.1]} 19... O-O {[%clk 0:01:47]} 20. Bg2 {[%clk 0:02:56.4]} 20... Rfe8
{[%clk 0:01:46.7]} 21. Be4 {[%clk 0:02:57]} 21... g6 {[%clk 0:01:46.5]} 22. a3
{[%clk 0:02:55.7]} 22... Be7 {[%clk 0:01:45.7]} 23. g4 {[%clk 0:02:55.9]} 23...
Kg7 {[%clk 0:01:42.7]} 24. Nd5 {[%clk 0:02:55.8]} 24... Bh4 {[%clk 0:01:40.2]}
25. Nb6 {[%clk 0:02:55.2]} 25... Re6 {[%clk 0:01:38.3]} 26. Nc4 {[%clk
0:02:55.2]} 26... b5 {[%clk 0:01:36]} 27. Nd2 {[%clk 0:02:55.6]} 27... Bg5
{[%clk 0:01:22.1]} 28. Nf3 {[%clk 0:02:55.9]} 28... Bf4 {[%clk 0:01:22.6]} 29.
h4 {[%clk 0:02:55.9]} 29... Ne7 {[%clk 0:01:20.4]} 30. Ne1 {[%clk 0:02:39.1]}
30... f5 {[%clk 0:01:17.8]} 31. gxf5 {[%clk 0:02:38.8]} 31... gxf5 {[%clk
0:01:18.7]} 32. Bg2 {[%clk 0:02:39.7]} 32... e4 {[%clk 0:01:18.3]} 33. f3 {[%clk
0:02:38.8]} 33... Bh6 {[%clk 0:01:14.2]} 34. fxe4 {[%clk 0:02:35.9]} 34... fxe4
{[%clk 0:01:15.1]} 35. Rg1 {[%clk 0:02:36.8]} 35... Ng6 {[%clk 0:01:11.3]} 36.
Bh3 {[%clk 0:02:35.6]} 36... Re5 {[%clk 0:01:11.6]} 37. Ng2 {[%clk 0:02:32.1]}
37... Kh8 {[%clk 0:01:00.4]} 38. Rdf1 {[%clk 0:02:31.6]} 38... Rc5 {[%clk
0:00:58.9]} 39. Ne1 {[%clk 0:02:31.1]} 39... d3+ {[%clk 0:00:59]} 40. cxd3
{[%clk 0:02:32]} 40... exd3+ {[%clk 0:00:58.5]} 41. Kf3 {[%clk 0:02:27.9]} 41...
d2 {[%clk 0:00:56.9]} 42. Ng2 {[%clk 0:02:28.1]} 42... Rd3+ {[%clk 0:00:56.9]}
43. Kg4 {[%clk 0:02:28]} 0-1

[Event "Late-Titled-Tuesday-Blitz-February-06-2024"]
[Site "Chess.com"]
[Date "2024.02.06"]
[Round "1"]
[White "mbojan"]
[Black "tgpgoat"]
[Result "1-0"]
[WhiteElo "2863"]
[BlackElo "2462"]
[TimeControl "180+1"]
[EndTime "14:04:34 PST"]
[Termination "mbojan won by resignation"]

1. Nf3 {[%clk 0:03:00.9]} 1... Nf6 {[%clk 0:03:00]} 2. g3 {[%clk 0:02:58.5]}
2... g6 {[%clk 0:03:00]} 3. b3 {[%clk 0:02:57.9]} 3... Bg7 {[%clk 0:03:00.6]} 4.
Bb2 {[%clk 0:02:58.6]} 4... O-O {[%clk 0:03:00.9]} 5. Bg2 {[%clk 0:02:59.2]}
5... d6 {[%clk 0:03:01.2]} 6. d4 {[%clk 0:02:58.9]} 6... Ne4 {[%clk 0:02:59.2]}
7. O-O {[%clk 0:02:57]} 7... c5 {[%clk 0:02:59.1]} 8. Nbd2 {[%clk 0:02:57.1]}
8... Nxd2 {[%clk 0:02:58.5]} 9. Qxd2 {[%clk 0:02:57.5]} 9... Nc6 {[%clk
0:02:59.1]} 10. c4 {[%clk 0:02:56.8]} 10... cxd4 {[%clk 0:02:56]} 11. Nxd4
{[%clk 0:02:57.7]} 11... Nxd4 {[%clk 0:02:56.1]} 12. Bxd4 {[%clk 0:02:58.6]}
12... Qc7 {[%clk 0:02:55.1]} 13. Rac1 {[%clk 0:02:52.9]} 13... Bd7 {[%clk
0:02:54.9]} 14. c5 {[%clk 0:02:51.7]} 14... Bc6 {[%clk 0:02:53.6]} 15. Bxg7
{[%clk 0:02:49.8]} 15... Kxg7 {[%clk 0:02:53.5]} 16. cxd6 {[%clk 0:02:49.5]}
16... exd6 {[%clk 0:02:54.4]} 17. Bxc6 {[%clk 0:02:49.8]} 17... bxc6 {[%clk
0:02:54.4]} 18. Qc3+ {[%clk 0:02:50.2]} 18... Kg8 {[%clk 0:02:52.8]} 19. Qxc6
{[%clk 0:02:51.1]} 19... Qe7 {[%clk 0:02:52.7]} 20. e3 {[%clk 0:02:51.1]} 20...
Qf6 {[%clk 0:02:51.9]} 21. Rfd1 {[%clk 0:02:51.1]} 21... Rfd8 {[%clk 0:02:51.6]}
22. Rd2 {[%clk 0:02:48.5]} 22... a5 {[%clk 0:02:45.9]} 23. Rcd1 {[%clk
0:02:47.5]} 23... Rac8 {[%clk 0:02:43.7]} 24. Qa6 {[%clk 0:02:44.1]} 24... Qc3
{[%clk 0:02:42.4]} 25. Rxd6 {[%clk 0:02:42.5]} 25... Rxd6 {[%clk 0:02:42.4]} 26.
Qxd6 {[%clk 0:02:42.6]} 26... Qb2 {[%clk 0:02:38.9]} 27. Rd2 {[%clk 0:02:32.4]}
27... Qa1+ {[%clk 0:02:35.4]} 28. Kg2 {[%clk 0:02:32.1]} 28... Qc1 {[%clk
0:02:33.9]} 29. Qd5 {[%clk 0:02:26.3]} 29... Qc3 {[%clk 0:02:20.7]} 30. h4
{[%clk 0:02:23.6]} 30... h5 {[%clk 0:02:20.2]} 31. Rd4 {[%clk 0:02:20.3]} 31...
Qe1 {[%clk 0:02:16.2]} 32. Qd7 {[%clk 0:02:14.1]} 32... Rc1 {[%clk 0:02:15]} 33.
Kf3 {[%clk 0:02:06]} 33... Qh1+ {[%clk 0:02:13.9]} 34. Kf4 {[%clk 0:02:06.1]}
34... Rc2 {[%clk 0:02:03.3]} 35. Qe8+ {[%clk 0:01:32.7]} 35... Kg7 {[%clk
0:02:00.6]} 36. Qe5+ {[%clk 0:01:32.3]} 36... Kh6 {[%clk 0:01:57.6]} 1-0

[Event "Late-Titled-Tuesday-Blitz-February-06-2024"]
[Site "Chess.com"]
[Date "2024.02.06"]
[Round "1"]
[White "NFChess13"]
[Black "ChessFanNM"]
[Result "0-1"]
[WhiteElo "2636"]
[BlackElo "2367"]
[TimeControl "180+1"]
[EndTime "14:04:42 PST"]
[Termination "ChessFanNM won by resignation"]

1. d4 {[%clk 0:03:00.9]} 1... Nf6 {[%clk 0:02:59.4]} 2. Nc3 {[%clk 0:02:59]}
2... c5 {[%clk 0:02:58.5]} 3. dxc5 {[%clk 0:02:50.2]} 3... e6 {[%clk 0:02:57.1]}
4. e4 {[%clk 0:02:48.8]} 4... Bxc5 {[%clk 0:02:56.6]} 5. Bd3 {[%clk 0:02:46.3]}
5... d6 {[%clk 0:02:55.4]} 6. Nf3 {[%clk 0:02:46.3]} 6... Nc6 {[%clk 0:02:55.4]}
7. O-O {[%clk 0:02:46.1]} 7... h6 {[%clk 0:02:53.9]} 8. a3 {[%clk 0:02:45.1]}
8... a6 {[%clk 0:02:52.3]} 9. Qe2 {[%clk 0:02:43.2]} 9... O-O {[%clk 0:02:47.8]}
10. Be3 {[%clk 0:02:43.1]} 10... Bxe3 {[%clk 0:02:45.9]} 11. Qxe3 {[%clk
0:02:43.8]} 11... Bd7 {[%clk 0:02:42.4]} 12. Rad1 {[%clk 0:02:43.3]} 12... Qe7
{[%clk 0:02:41.8]} 13. Bc4 {[%clk 0:02:38.8]} 13... Ne5 {[%clk 0:02:35.6]} 14.
Nxe5 {[%clk 0:02:34.8]} 14... dxe5 {[%clk 0:02:35.3]} 15. Qb6 {[%clk 0:02:34.1]}
15... Bc6 {[%clk 0:02:33.3]} 16. f3 {[%clk 0:02:33.2]} 16... Rfd8 {[%clk
0:02:31.7]} 17. Bb3 {[%clk 0:02:29.9]} 17... Nd7 {[%clk 0:02:17.9]} 18. Qe3
{[%clk 0:02:19.7]} 18... Qc5 {[%clk 0:02:17]} 19. Kf2 {[%clk 0:02:19.4]} 19...
Qxe3+ {[%clk 0:02:16.2]} 20. Kxe3 {[%clk 0:02:20.3]} 20... Nc5 {[%clk
0:02:16.6]} 21. Bc4 {[%clk 0:02:19.6]} 21... Kf8 {[%clk 0:02:06.8]} 22. b4
{[%clk 0:02:17.7]} 22... Na4 {[%clk 0:02:01.9]} 23. Ne2 {[%clk 0:02:06.4]} 23...
Nb2 {[%clk 0:01:56.7]} 24. Rxd8+ {[%clk 0:02:02.8]} 24... Rxd8 {[%clk
0:01:55.6]} 25. Bb3 {[%clk 0:02:03.1]} 25... Bb5 {[%clk 0:01:51.1]} 26. Rb1
{[%clk 0:01:58.4]} 26... Nd1+ {[%clk 0:01:49.9]} 27. Rxd1 {[%clk 0:01:55.5]}
27... Rxd1 {[%clk 0:01:49.4]} 28. Nc3 {[%clk 0:01:56.2]} 28... Rg1 {[%clk
0:01:43.8]} 29. a4 {[%clk 0:01:56]} 29... Bd7 {[%clk 0:01:35.2]} 30. Kf2 {[%clk
0:01:55.5]} 30... Rh1 {[%clk 0:01:32.2]} 31. h3 {[%clk 0:01:54.6]} 31... h5
{[%clk 0:01:32.2]} 32. Ne2 {[%clk 0:01:53.8]} 32... Ra1 {[%clk 0:01:30.7]} 33.
Nc3 {[%clk 0:01:52.2]} 33... h4 {[%clk 0:01:28.7]} 34. Ke3 {[%clk 0:01:46.3]}
34... g5 {[%clk 0:01:24.9]} 35. Ke2 {[%clk 0:01:43.7]} 35... Ke7 {[%clk
0:01:24.4]} 36. Nd1 {[%clk 0:01:42.4]} 36... Bxa4 {[%clk 0:01:20.4]} 0-1

[Event "Late-Titled-Tuesday-Blitz-February-06-2024"]
[Site "Chess.com"]
[Date "2024.02.06"]
[Round "1"]
[White "EcosseKillie"]
[Black "manitodeplomo"]
[Result "0-1"]
[WhiteElo "2254"]
[BlackElo "2608"]
[TimeControl "180+1"]
[EndTime "14:04:57 PST"]
[Termination "manitodeplomo won by resignation"]

1. d4 {[%clk 0:03:00.9]} 1... g6 {[%clk 0:02:56.1]} 2. e4 {[%clk 0:02:59.4]}
2... Bg7 {[%clk 0:02:55.3]} 3. Nc3 {[%clk 0:03:00.3]} 3... c5 {[%clk 0:02:54.8]}
4. dxc5 {[%clk 0:03:01.1]} 4... Qa5 {[%clk 0:02:50.7]} 5. Bd2 {[%clk 0:03:01.2]}
5... Qxc5 {[%clk 0:02:50.9]} 6. Nd5 {[%clk 0:03:01.9]} 6... b6 {[%clk
0:02:50.3]} 7. b4 {[%clk 0:03:00.7]} 7... Qc6 {[%clk 0:02:49.9]} 8. Bb5 {[%clk
0:03:00.3]} 8... Qb7 {[%clk 0:02:49.9]} 9. Bf4 {[%clk 0:02:50.9]} 9... a6 {[%clk
0:02:26.3]} 10. Nc7+ {[%clk 0:02:34.6]} 10... Kd8 {[%clk 0:02:24.9]} 11. Nxa8
{[%clk 0:02:35.5]} 11... axb5 {[%clk 0:02:23.6]} 12. Bc7+ {[%clk 0:02:13.8]}
12... Ke8 {[%clk 0:02:18.9]} 13. Bxb8 {[%clk 0:02:12]} 13... Qxb8 {[%clk
0:02:14.2]} 14. Nxb6 {[%clk 0:02:10.1]} 14... Qxb6 {[%clk 0:02:13.4]} 15. Rb1
{[%clk 0:02:09.9]} 15... Bb7 {[%clk 0:02:09.6]} 16. Qd3 {[%clk 0:02:03]} 16...
Nf6 {[%clk 0:02:07.8]} 17. f3 {[%clk 0:02:03.7]} 17... d5 {[%clk 0:02:01.6]} 18.
e5 {[%clk 0:02:03]} 18... Nd7 {[%clk 0:02:01.4]} 19. e6 {[%clk 0:02:01.1]} 19...
Qxe6+ {[%clk 0:01:58.4]} 20. Ne2 {[%clk 0:01:59.3]} 20... Qc6 {[%clk 0:01:53.9]}
21. O-O {[%clk 0:01:56.6]} 21... Ne5 {[%clk 0:01:51.3]} 22. Qb3 {[%clk
0:01:47.1]} 22... Nc4 {[%clk 0:01:47.1]} 23. Qd3 {[%clk 0:01:36.4]} 23... e6
{[%clk 0:01:37]} 24. Kh1 {[%clk 0:01:36]} 24... Ke7 {[%clk 0:01:36.1]} 25. Rfe1
{[%clk 0:01:35.2]} 25... Ra8 {[%clk 0:01:31.7]} 26. Nd4 {[%clk 0:01:35.1]} 26...
Qb6 {[%clk 0:01:30.1]} 27. c3 {[%clk 0:01:28.5]} 27... Ra3 {[%clk 0:01:23]} 28.
Qe2 {[%clk 0:01:15.6]} 28... Rxc3 {[%clk 0:01:16.6]} 29. Rbc1 {[%clk 0:01:15.4]}
0-1

[Event "Late-Titled-Tuesday-Blitz-February-06-2024"]
[Site "Chess.com"]
[Date "2024.02.06"]
[Round "1"]
[White "Beca95"]
[Black "masterofpuppets2"]
[Result "1-0"]
[WhiteElo "2958"]
[BlackElo "2508"]
[TimeControl "180+1"]
[EndTime "14:05:01 PST"]
[Termination "Beca95 won by resignation"]

1. e4 {[%clk 0:03:00.9]} 1... c6 {[%clk 0:02:59.8]} 2. Nc3 {[%clk 0:02:59.6]}
2... d5 {[%clk 0:02:59.4]} 3. Nf3 {[%clk 0:03:00.1]} 3... Bg4 {[%clk 0:02:57.7]}
4. h3 {[%clk 0:02:58.8]} 4... Bh5 {[%clk 0:02:58.1]} 5. g4 {[%clk 0:02:50.3]}
5... Bg6 {[%clk 0:02:58.1]} 6. d3 {[%clk 0:02:49]} 6... e6 {[%clk 0:02:53.2]} 7.
Qe2 {[%clk 0:02:48]} 7... Nd7 {[%clk 0:02:52.7]} 8. Bg2 {[%clk 0:02:47]} 8...
Bc5 {[%clk 0:02:47.3]} 9. Bf4 {[%clk 0:02:44.4]} 9... Ne7 {[%clk 0:02:41.8]} 10.
O-O-O {[%clk 0:02:43.8]} 10... a5 {[%clk 0:02:24.5]} 11. exd5 {[%clk 0:02:23.9]}
11... Nxd5 {[%clk 0:02:20]} 12. Nxd5 {[%clk 0:02:17.5]} 12... cxd5 {[%clk
0:02:18.9]} 13. h4 {[%clk 0:02:17]} 13... h5 {[%clk 0:02:16.5]} 14. Ne5 {[%clk
0:02:12.9]} 14... Nxe5 {[%clk 0:02:09.1]} 15. Bxe5 {[%clk 0:02:13.8]} 15... Kf8
{[%clk 0:02:01.5]} 16. Bf3 {[%clk 0:02:01.4]} 16... hxg4 {[%clk 0:01:49.8]} 17.
Bxg4 {[%clk 0:02:01]} 17... Rc8 {[%clk 0:01:28.4]} 18. h5 {[%clk 0:01:59.6]}
18... Qg5+ {[%clk 0:01:24.2]} 19. f4 {[%clk 0:01:58.5]} 19... Be3+ {[%clk
0:01:19.6]} 20. Qxe3 {[%clk 0:01:52.8]} 20... Qxg4 {[%clk 0:01:19.7]} 21. hxg6
{[%clk 0:01:52.6]} 21... Rxh1 {[%clk 0:00:51.4]} 22. Rxh1 {[%clk 0:01:51.1]}
22... Rxc2+ {[%clk 0:00:38.9]} 23. Kxc2 {[%clk 0:01:47.7]} 23... Qg2+ {[%clk
0:00:39.3]} 24. Kc3 {[%clk 0:01:47]} 24... Qxh1 {[%clk 0:00:39.4]} 25. Qc5+
{[%clk 0:01:46.7]} 25... Ke8 {[%clk 0:00:34.9]} 26. Qc8+ {[%clk 0:01:46]} 26...
Ke7 {[%clk 0:00:35]} 27. Qc7+ {[%clk 0:01:46.3]} 1-0

[Event "Late-Titled-Tuesday-Blitz-February-06-2024"]
[Site "Chess.com"]
[Date "2024.02.06"]
[Round "1"]
[White "losersgame"]
[Black "Msb2"]
[Result "0-1"]
[WhiteElo "2516"]
[BlackElo "3002"]
[TimeControl "180+1"]
[EndTime "14:05:02 PST"]
[Termination "Msb2 won on time"]

1. d4 {[%clk 0:03:00.9]} 1... d5 {[%clk 0:03:00.1]} 2. c4 {[%clk 0:03:00.7]}
2... e6 {[%clk 0:03:00.5]} 3. Nc3 {[%clk 0:03:00.8]} 3... Bb4 {[%clk 0:03:00.8]}
4. e3 {[%clk 0:02:52.9]} 4... Nf6 {[%clk 0:03:01]} 5. Nf3 {[%clk 0:02:52.9]}
5... O-O {[%clk 0:03:00.8]} 6. Bd3 {[%clk 0:02:52.6]} 6... dxc4 {[%clk
0:03:01.4]} 7. Bxc4 {[%clk 0:02:52.8]} 7... c5 {[%clk 0:03:02.2]} 8. O-O {[%clk
0:02:52.7]} 8... a6 {[%clk 0:03:02.9]} 9. a3 {[%clk 0:02:18.9]} 9... Bxc3 {[%clk
0:03:03]} 10. bxc3 {[%clk 0:02:19.8]} 10... b5 {[%clk 0:03:03.7]} 11. Ba2 {[%clk
0:02:19.2]} 11... Bb7 {[%clk 0:03:00.7]} 12. Qe2 {[%clk 0:02:13]} 12... Nbd7
{[%clk 0:02:55.4]} 13. a4 {[%clk 0:02:07.2]} 13... Qb6 {[%clk 0:02:47.2]} 14.
Ba3 {[%clk 0:02:06.1]} 14... Rfc8 {[%clk 0:02:33.7]} 15. Rfb1 {[%clk 0:01:39.5]}
15... Ne4 {[%clk 0:02:32.6]} 16. Bb2 {[%clk 0:00:44.6]} 16... Qc6 {[%clk
0:02:29.1]} 17. Ne1 {[%clk 0:00:42.1]} 17... Nb6 {[%clk 0:02:23.9]} 18. axb5
{[%clk 0:00:38]} 18... axb5 {[%clk 0:02:24.8]} 19. f3 {[%clk 0:00:37.4]} 19...
Nf6 {[%clk 0:02:25.1]} 20. Nd3 {[%clk 0:00:33.7]} 20... Na4 {[%clk 0:02:22.7]}
21. Bb3 {[%clk 0:00:17]} 21... Nxb2 {[%clk 0:02:22.7]} 22. Qxb2 {[%clk
0:00:16.1]} 22... c4 {[%clk 0:02:18.1]} 23. Nb4 {[%clk 0:00:16]} 23... Qc7
{[%clk 0:02:11.5]} 24. Bd1 {[%clk 0:00:11]} 24... h6 {[%clk 0:02:09.8]} 25. e4
{[%clk 0:00:07.3]} 25... e5 {[%clk 0:02:08.7]} 26. d5 {[%clk 0:00:06.8]} 26...
Ne8 {[%clk 0:02:09.2]} 27. Qf2 {[%clk 0:00:05.3]} 27... Nd6 {[%clk 0:02:08.9]}
28. Be2 {[%clk 0:00:02.6]} 28... f5 {[%clk 0:02:09.1]} 0-1

[Event "Late-Titled-Tuesday-Blitz-February-06-2024"]
[Site "Chess.com"]
[Date "2024.02.06"]
[Round "1"]
[White "KuzubovYuriy"]
[Black "argentum049"]
[Result "1-0"]
[WhiteElo "2905"]
[BlackElo "2485"]
[TimeControl "180+1"]
[EndTime "14:05:09 PST"]
[Termination "KuzubovYuriy won on time"]

1. d4 {[%clk 0:03:00.9]} 1... Nf6 {[%clk 0:02:55.3]} 2. Nf3 {[%clk 0:03:01.1]}
2... g6 {[%clk 0:02:54.8]} 3. Nbd2 {[%clk 0:03:01.6]} 3... d5 {[%clk 0:02:52]}
4. b4 {[%clk 0:03:01.9]} 4... Bg7 {[%clk 0:02:50.9]} 5. e3 {[%clk 0:03:02.1]}
5... O-O {[%clk 0:02:50.6]} 6. c4 {[%clk 0:03:01.2]} 6... a5 {[%clk 0:02:37.9]}
7. b5 {[%clk 0:03:01.5]} 7... c5 {[%clk 0:02:37.4]} 8. Bb2 {[%clk 0:03:01.2]}
8... Nbd7 {[%clk 0:02:13]} 9. Rc1 {[%clk 0:02:59.8]} 9... e6 {[%clk 0:01:49.1]}
10. Be2 {[%clk 0:02:39.9]} 10... Ne4 {[%clk 0:01:48.5]} 11. O-O {[%clk
0:02:39.3]} 11... b6 {[%clk 0:01:42.9]} 12. Ba1 {[%clk 0:02:34.5]} 12... Bb7
{[%clk 0:01:41]} 13. cxd5 {[%clk 0:02:34.2]} 13... Nxd2 {[%clk 0:01:33.1]} 14.
Nxd2 {[%clk 0:02:17]} 14... Bxd5 {[%clk 0:01:32.5]} 15. e4 {[%clk 0:02:04.9]}
15... Bb7 {[%clk 0:01:20.1]} 16. dxc5 {[%clk 0:02:05.2]} 16... Nxc5 {[%clk
0:01:13.9]} 17. Bxg7 {[%clk 0:02:03.5]} 17... Kxg7 {[%clk 0:01:14.8]} 18. f3
{[%clk 0:02:03.4]} 18... Qg5 {[%clk 0:00:13.5]} 19. Nc4 {[%clk 0:02:00.5]} 19...
Rfd8 {[%clk 0:00:11.3]} 20. Qe1 {[%clk 0:02:00.5]} 20... Rac8 {[%clk 0:00:02.1]}
21. Nxb6 {[%clk 0:01:56.6]} 21... Qe3+ {[%clk 0:00:01.5]} 22. Qf2 {[%clk
0:01:54.6]} 1-0

[Event "Late-Titled-Tuesday-Blitz-February-06-2024"]
[Site "Chess.com"]
[Date "2024.02.06"]
[Round "1"]
[White "Mops_2004"]
[Black "Dzidzik2203"]
[Result "1-0"]
[WhiteElo "2716"]
[BlackElo "2378"]
[TimeControl "180+1"]
[EndTime "14:05:11 PST"]
[Termination "Mops_2004 won by resignation"]

1. Nf3 {[%clk 0:03:00.9]} 1... d5 {[%clk 0:02:58.9]} 2. g3 {[%clk 0:03:01.1]}
2... Bg4 {[%clk 0:02:56.2]} 3. Bg2 {[%clk 0:03:01]} 3... Nd7 {[%clk 0:02:55.7]}
4. h3 {[%clk 0:03:01.3]} 4... Bxf3 {[%clk 0:02:55.1]} 5. Bxf3 {[%clk 0:03:02.2]}
5... Ngf6 {[%clk 0:02:55.1]} 6. O-O {[%clk 0:03:02.2]} 6... h5 {[%clk
0:02:53.5]} 7. d4 {[%clk 0:02:56.9]} 7... h4 {[%clk 0:02:50.9]} 8. g4 {[%clk
0:02:57.1]} 8... e5 {[%clk 0:02:51]} 9. c4 {[%clk 0:02:52.9]} 9... e4 {[%clk
0:02:48.4]} 10. Bg2 {[%clk 0:02:52.8]} 10... c6 {[%clk 0:02:48.6]} 11. Nc3
{[%clk 0:02:52.3]} 11... Bd6 {[%clk 0:02:48]} 12. cxd5 {[%clk 0:02:51.1]} 12...
cxd5 {[%clk 0:02:46.5]} 13. g5 {[%clk 0:02:49]} 13... Nh7 {[%clk 0:02:30.5]} 14.
g6 {[%clk 0:02:31.2]} 14... Nhf6 {[%clk 0:02:13.5]} 15. gxf7+ {[%clk 0:02:30.3]}
15... Kxf7 {[%clk 0:02:14.4]} 16. Qb3 {[%clk 0:02:29.9]} 16... Qb6 {[%clk
0:02:10.9]} 17. Qa4 {[%clk 0:02:19.6]} 17... Rh5 {[%clk 0:01:49.9]} 18. f3
{[%clk 0:02:02.5]} 18... Bb4 {[%clk 0:00:55.9]} 19. fxe4 {[%clk 0:01:46.7]}
19... Qxd4+ {[%clk 0:00:55.1]} 20. e3 {[%clk 0:01:47.2]} 20... Qc4 {[%clk
0:00:38.1]} 21. Nxd5 {[%clk 0:01:46]} 21... Rxd5 {[%clk 0:00:35.6]} 22. exd5
{[%clk 0:01:46.9]} 22... b5 {[%clk 0:00:32.9]} 23. Qb3 {[%clk 0:01:43.8]} 23...
Ne5 {[%clk 0:00:29.6]} 24. d6 {[%clk 0:01:38.4]} 24... Rd8 {[%clk 0:00:19.7]}
25. Bd5+ {[%clk 0:01:36.6]} 1-0

[Event "Late-Titled-Tuesday-Blitz-February-06-2024"]
[Site "Chess.com"]
[Date "2024.02.06"]
[Round "1"]
[White "campochess"]
[Black "nindjaxx8"]
[Result "0-1"]
[WhiteElo "2086"]
[BlackElo "2562"]
[TimeControl "180+1"]
[EndTime "14:05:18 PST"]
[Termination "nindjaxx8 won by resignation"]

1. d4 {[%clk 0:02:59.1]} 1... d5 {[%clk 0:02:52.5]} 2. Bg5 {[%clk 0:02:58.8]}
2... Nf6 {[%clk 0:02:48.4]} 3. Nd2 {[%clk 0:02:58.3]} 3... e6 {[%clk 0:02:33.3]}
4. e3 {[%clk 0:02:57.4]} 4... Be7 {[%clk 0:02:33.2]} 5. Bd3 {[%clk 0:02:57.2]}
5... O-O {[%clk 0:02:32.7]} 6. Ngf3 {[%clk 0:02:57.2]} 6... b6 {[%clk
0:02:27.1]} 7. Ne5 {[%clk 0:02:56.9]} 7... Bb7 {[%clk 0:02:27.1]} 8. O-O {[%clk
0:02:56.8]} 8... Ne4 {[%clk 0:02:26.6]} 9. Bxe7 {[%clk 0:02:55.3]} 9... Qxe7
{[%clk 0:02:25.3]} 10. f3 {[%clk 0:02:47]} 10... Nxd2 {[%clk 0:02:23.6]} 11.
Qxd2 {[%clk 0:02:46.9]} 11... Nd7 {[%clk 0:02:24.2]} 12. Nxd7 {[%clk 0:02:45.8]}
12... Qxd7 {[%clk 0:02:25.1]} 13. Qf2 {[%clk 0:02:41.2]} 13... c5 {[%clk
0:02:24.7]} 14. c3 {[%clk 0:02:39.6]} 14... cxd4 {[%clk 0:02:13.7]} 15. exd4
{[%clk 0:02:38.4]} 15... Rac8 {[%clk 0:02:14.4]} 16. Qh4 {[%clk 0:02:37.2]}
16... h6 {[%clk 0:02:14.7]} 17. Rae1 {[%clk 0:02:35.6]} 17... Rc7 {[%clk
0:02:10]} 18. Re5 {[%clk 0:02:34.3]} 18... b5 {[%clk 0:02:07.9]} 19. a3 {[%clk
0:02:32.6]} 19... a5 {[%clk 0:02:07.4]} 20. f4 {[%clk 0:02:30]} 20... b4 {[%clk
0:02:04.4]} 21. axb4 {[%clk 0:02:28.2]} 21... axb4 {[%clk 0:02:05.3]} 22. f5
{[%clk 0:02:28]} 22... exf5 {[%clk 0:01:59.7]} 23. Bxf5 {[%clk 0:02:04.2]} 23...
Qd6 {[%clk 0:01:59.3]} 24. Qg3 {[%clk 0:01:55.2]} 24... bxc3 {[%clk 0:01:55.4]}
25. bxc3 {[%clk 0:01:55.1]} 25... Qa3 {[%clk 0:01:52.9]} 26. Re3 {[%clk
0:01:54.6]} 26... Re7 {[%clk 0:01:50.5]} 27. Rfe1 {[%clk 0:01:53]} 27... Rxe3
{[%clk 0:01:48.4]} 28. Qxe3 {[%clk 0:01:52.8]} 28... Bc8 {[%clk 0:01:40.8]} 29.
Bc2 {[%clk 0:01:50.3]} 29... Qb2 {[%clk 0:01:37.8]} 30. Qd3 {[%clk 0:01:49.9]}
30... g6 {[%clk 0:01:37.1]} 31. Rb1 {[%clk 0:01:45.3]} 31... Qa2 {[%clk
0:01:36.2]} 32. h3 {[%clk 0:01:44.4]} 32... Bf5 {[%clk 0:01:35.5]} 33. Qe3
{[%clk 0:01:32.4]} 33... Bxc2 {[%clk 0:01:34.5]} 34. Rb6 {[%clk 0:01:30]} 34...
Be4 {[%clk 0:01:34]} 35. Qg3 {[%clk 0:01:26]} 35... h5 {[%clk 0:01:33.3]} 36.
Qg5 {[%clk 0:01:16.5]} 36... Qc2 {[%clk 0:01:27.5]} 37. Rc6 {[%clk 0:01:15.8]}
37... Ra8 {[%clk 0:01:24.8]} 38. Kh2 {[%clk 0:01:11.7]} 38... Ra2 {[%clk
0:01:22.7]} 39. Qd8+ {[%clk 0:01:11]} 39... Kh7 {[%clk 0:01:22.3]} 0-1